[Event "Titled Tuesday Blitz October 11 Late 2022"]
[White "Dubov, Daniil"]
[Black "Naroditsky, Daniel"]
[WhiteFideId "24126055"]
[BlackFideId "2026961"]
[WhiteElo "2791"]
[BlackElo "2628"]
[Result "1-0"]
[Round "05"]
[TimeControl "180+1"]
[Date "2022.10.11"]
[WhiteClock "0:00:11"]
[BlackClock "0:00:06"]

1. d4 {[%clk 0:03:00]}  Nf6 {[%clk 0:02:58]} 2. Nf3 {[%clk 0:03:00]}  g6 {[%clk 0:02:56]} 3. c4 {[%clk 0:03:00]}  Bg7 {[%clk 0:02:56]} 4. Nc3 {[%clk 0:03:00]}  d6 {[%clk 0:02:57]} 5. Bg5 {[%clk 0:02:59]}  Bf5 {[%clk 0:02:57]} 6. e3 {[%clk 0:02:58]}  Ne4 {[%clk 0:02:57]} 7. Nxe4 {[%clk 0:02:57]}  Bxe4 {[%clk 0:02:58]} 8. Bd3 {[%clk 0:02:58]}  Bxd3 {[%clk 0:02:53]} 9. Qxd3 {[%clk 0:02:57]}  c5 {[%clk 0:02:52]} 10. O-O {[%clk 0:02:56]}  O-O {[%clk 0:02:51]} 11. dxc5 {[%clk 0:02:54]}  dxc5 {[%clk 0:02:13]} 12. Qxd8 {[%clk 0:02:53]}  Rxd8 {[%clk 0:02:14]} 13. Bxe7 {[%clk 0:02:53]}  Rd7 {[%clk 0:01:48]} 14. Bxc5 {[%clk 0:02:51]}  Bxb2 {[%clk 0:01:48]} 15. Rad1 {[%clk 0:02:35]}  b6 {[%clk 0:01:48]} 16. Bd4 {[%clk 0:02:32]}  Bxd4 {[%clk 0:01:36]} 17. Rxd4 {[%clk 0:02:31]}  Rxd4 {[%clk 0:01:33]} 18. exd4 {[%clk 0:02:30]}  Nc6 {[%clk 0:01:33]} 19. Rc1 {[%clk 0:02:29]}  Na5 {[%clk 0:01:31]} 20. Kf1 {[%clk 0:02:28]}  Rc8 {[%clk 0:01:26]} 21. Nd2 {[%clk 0:02:22]}  Nc6 {[%clk 0:01:25]} 22. Nb3 {[%clk 0:02:05]}  Nb4 {[%clk 0:01:25]} 23. a3 {[%clk 0:01:52]}  Nd3 {[%clk 0:01:26]} 24. Rc2 {[%clk 0:01:44]}  Re8 {[%clk 0:01:21]} 25. Re2 {[%clk 0:01:44]}  Rc8 {[%clk 0:01:21]} 26. Rd2 {[%clk 0:01:43]}  Nf4 {[%clk 0:01:18]} 27. Rc2 {[%clk 0:01:40]}  a5 {[%clk 0:00:59]} 28. g3 {[%clk 0:01:17]}  a4 {[%clk 0:00:53]} 29. Nd2 {[%clk 0:01:12]}  Ne6 {[%clk 0:00:47]} 30. d5 {[%clk 0:00:56]}  Nc5 {[%clk 0:00:35]} 31. Rb2 {[%clk 0:00:56]}  Rb8 {[%clk 0:00:29]} 32. Ke2 {[%clk 0:00:55]}  Kf8 {[%clk 0:00:29]} 33. Ke3 {[%clk 0:00:54]}  Ke7 {[%clk 0:00:29]} 34. Rb4 {[%clk 0:00:48]}  f5 {[%clk 0:00:27]} 35. Kd4 {[%clk 0:00:36]}  Kd6 {[%clk 0:00:27]} 36. Nb1 {[%clk 0:00:36]}  Nb3+ {[%clk 0:00:23]} 37. Kd3 {[%clk 0:00:35]}  Nc5+ {[%clk 0:00:21]} 38. Kd2 {[%clk 0:00:34]}  Ne4+ {[%clk 0:00:20]} 39. Ke3 {[%clk 0:00:33]}  Kc5 {[%clk 0:00:16]} 40. f3 {[%clk 0:00:31]}  Nd6 {[%clk 0:00:17]} 41. Nd2 {[%clk 0:00:15]}  b5 {[%clk 0:00:17]} 42. cxb5 {[%clk 0:00:14]}  Rxb5 {[%clk 0:00:13]} 43. Rxa4 {[%clk 0:00:13]}  Kxd5 {[%clk 0:00:14]} 44. Ra7 {[%clk 0:00:13]}  h6 {[%clk 0:00:07]} 45. Rg7 {[%clk 0:00:12]}  g5 {[%clk 0:00:06]} 46. Ra7 {[%clk 0:00:12]}  Rb2 {[%clk 0:00:06]} 47. Ra5+ {[%clk 0:00:12]}  Ke6 {[%clk 0:00:05]} 48. Ra6 {[%clk 0:00:12]}  Kd5 {[%clk 0:00:06]} 49. Rxd6+ {[%clk 0:00:11]} 1-0


[Site "https://www.chess.com"]

[Event "Titled Tuesday Blitz October 11 Late 2022"]
[White "Eisa Mohmood, Alkhoori"]
[Black "Toncheva, Nadya"]
[WhiteFideId "9316116"]
[BlackFideId "2924056"]
[WhiteElo "1245"]
[BlackElo "2101"]
[Result "0-1"]
[Round "05"]
[TimeControl "180+1"]
[Date "2022.10.12"]
[WhiteClock "0:00:01"]
[BlackClock "0:00:04"]

1. e4 {[%clk 0:02:58]}  c5 {[%clk 0:03:00]} 2. Nf3 {[%clk 0:02:58]}  Nc6 {[%clk 0:03:00]} 3. d4 {[%clk 0:02:58]}  cxd4 {[%clk 0:03:01]} 4. Nxd4 {[%clk 0:02:59]}  g6 {[%clk 0:03:02]} 5. Nc3 {[%clk 0:03:00]}  Bg7 {[%clk 0:03:01]} 6. Be3 {[%clk 0:03:00]}  Nf6 {[%clk 0:03:02]} 7. Bc4 {[%clk 0:02:54]}  O-O {[%clk 0:03:02]} 8. f3 {[%clk 0:02:51]}  d6 {[%clk 0:03:02]} 9. Qd2 {[%clk 0:02:51]}  Bd7 {[%clk 0:03:01]} 10. O-O-O {[%clk 0:02:51]}  Rc8 {[%clk 0:03:01]} 11. Bb3 {[%clk 0:02:51]}  Ne5 {[%clk 0:03:01]} 12. Kb1 {[%clk 0:02:51]}  Nc4 {[%clk 0:03:01]} 13. Bxc4 {[%clk 0:02:52]}  Rxc4 {[%clk 0:03:01]} 14. g4 {[%clk 0:02:52]}  b5 {[%clk 0:03:00]} 15. h4 {[%clk 0:02:51]}  h5 {[%clk 0:02:59]} 16. gxh5 {[%clk 0:02:42]}  Nxh5 {[%clk 0:02:58]} 17. f4 {[%clk 0:02:34]}  b4 {[%clk 0:02:53]} 18. Nd5 {[%clk 0:02:23]}  e6 {[%clk 0:02:42]} 19. Nxb4 {[%clk 0:02:21]}  a5 {[%clk 0:02:13]} 20. Nd3 {[%clk 0:02:17]}  Bxd4 {[%clk 0:02:12]} 21. f5 {[%clk 0:01:15]}  Bxe3 {[%clk 0:02:00]} 22. Qxe3 {[%clk 0:01:15]}  exf5 {[%clk 0:01:59]} 23. exf5 {[%clk 0:01:12]}  Bxf5 {[%clk 0:01:59]} 24. Rhg1 {[%clk 0:01:11]}  Re8 {[%clk 0:01:39]} 25. Qf3 {[%clk 0:01:06]}  Kf8 {[%clk 0:01:25]} 26. Rg5 {[%clk 0:01:02]}  Rxh4 {[%clk 0:01:19]} 27. Rxf5 {[%clk 0:01:00]}  gxf5 {[%clk 0:01:18]} 28. Qxf5 {[%clk 0:01:01]}  Qf6 {[%clk 0:01:16]} 29. Qxa5 {[%clk 0:00:58]}  Qf3 {[%clk 0:01:08]} 30. Rc1 {[%clk 0:00:53]}  Nf4 {[%clk 0:01:04]} 31. Qb4 {[%clk 0:00:51]}  Nxd3 {[%clk 0:00:58]} 32. Qxd6+ {[%clk 0:00:47]}  Kg8 {[%clk 0:00:55]} 33. cxd3 {[%clk 0:00:44]}  Rg4 {[%clk 0:00:44]} 34. a3 {[%clk 0:00:40]}  Qe2 {[%clk 0:00:37]} 35. Rh1 {[%clk 0:00:38]}  Qe5 {[%clk 0:00:26]} 36. Qh6 {[%clk 0:00:31]}  Qg7 {[%clk 0:00:24]} 37. Qc6 {[%clk 0:00:26]}  Rb8 {[%clk 0:00:22]} 38. Rh2 {[%clk 0:00:23]}  Rg1+ {[%clk 0:00:20]} 39. Ka2 {[%clk 0:00:23]}  Rg6 {[%clk 0:00:19]} 40. Qd5 {[%clk 0:00:20]}  Rgb6 {[%clk 0:00:16]} 41. d4 {[%clk 0:00:18]}  Rg6 {[%clk 0:00:10]} 42. Rc2 {[%clk 0:00:16]}  Rg4 {[%clk 0:00:10]} 43. Rd2 {[%clk 0:00:14]}  Re8 {[%clk 0:00:09]} 44. Qc6 {[%clk 0:00:12]}  Re6 {[%clk 0:00:08]} 45. Qc8+ {[%clk 0:00:11]}  Qf8 {[%clk 0:00:08]} 46. Qc4 {[%clk 0:00:09]}  Qd6 {[%clk 0:00:08]} 47. Qc8+ {[%clk 0:00:07]}  Kg7 {[%clk 0:00:07]} 48. d5 {[%clk 0:00:06]}  Ree4 {[%clk 0:00:07]} 49. Qc3+ {[%clk 0:00:04]}  Qf6 {[%clk 0:00:05]} 50. Rf2 {[%clk 0:00:01]}  Qxc3 {[%clk 0:00:05]} 51. bxc3 {[%clk 0:00:01]}  Rg5 {[%clk 0:00:04]} 0-1


[Site "https://www.chess.com"]

[Event "Titled Tuesday Blitz October 11 Late 2022"]
[White "Fedoseev, Vladimir"]
[Black "Pinheiro, Iung Alicio de O."]
[WhiteFideId "24130737"]
[BlackFideId "2104350"]
[WhiteElo "2726"]
[BlackElo "2283"]
[Result "1/2-1/2"]
[Round "05"]
[TimeControl "180+1"]
[Date "2022.10.11"]
[WhiteClock "0:00:15"]
[BlackClock "0:00:09"]

1. e4 {[%clk 0:03:00]}  c5 {[%clk 0:02:59]} 2. Nf3 {[%clk 0:03:00]}  Nc6 {[%clk 0:02:59]} 3. Bb5 {[%clk 0:02:59]}  e5 {[%clk 0:02:58]} 4. c3 {[%clk 0:02:56]}  Nf6 {[%clk 0:02:54]} 5. O-O {[%clk 0:02:55]}  Nxe4 {[%clk 0:02:46]} 6. Re1 {[%clk 0:02:54]}  Nd6 {[%clk 0:02:42]} 7. Nxe5 {[%clk 0:02:54]}  Be7 {[%clk 0:02:41]} 8. Bf1 {[%clk 0:02:50]}  O-O {[%clk 0:02:37]} 9. Nf3 {[%clk 0:02:33]}  Nf5 {[%clk 0:02:34]} 10. d4 {[%clk 0:02:18]}  cxd4 {[%clk 0:02:25]} 11. Bd3 {[%clk 0:02:17]}  d5 {[%clk 0:02:24]} 12. Bxf5 {[%clk 0:02:17]}  Bxf5 {[%clk 0:02:23]} 13. Nxd4 {[%clk 0:02:18]}  Bg6 {[%clk 0:02:06]} 14. Nf3 {[%clk 0:02:08]}  Qd6 {[%clk 0:01:53]} 15. Be3 {[%clk 0:02:04]}  Rfe8 {[%clk 0:01:51]} 16. Nbd2 {[%clk 0:02:04]}  h6 {[%clk 0:01:40]} 17. Qa4 {[%clk 0:02:02]}  a6 {[%clk 0:01:39]} 18. Nb3 {[%clk 0:01:58]}  Bf6 {[%clk 0:00:54]} 19. Qg4 {[%clk 0:01:47]}  Rad8 {[%clk 0:00:49]} 20. Rad1 {[%clk 0:01:44]}  Qe6 {[%clk 0:00:48]} 21. Qxe6 {[%clk 0:01:39]}  fxe6 {[%clk 0:00:49]} 22. Nc5 {[%clk 0:01:38]}  Re7 {[%clk 0:00:45]} 23. Nd4 {[%clk 0:01:28]}  Nxd4 {[%clk 0:00:38]} 24. cxd4 {[%clk 0:01:28]}  a5 {[%clk 0:00:35]} 25. Bf4 {[%clk 0:01:26]}  b6 {[%clk 0:00:35]} 26. Na4 {[%clk 0:01:24]}  Bc2 {[%clk 0:00:31]} 27. Nxb6 {[%clk 0:01:14]}  Bxd1 {[%clk 0:00:31]} 28. Rxd1 {[%clk 0:01:15]}  Rb7 {[%clk 0:00:31]} 29. Na4 {[%clk 0:01:15]}  Rb4 {[%clk 0:00:31]} 30. Nc5 {[%clk 0:01:06]}  Rxd4 {[%clk 0:00:25]} 31. Nd3 {[%clk 0:00:57]}  Rc8 {[%clk 0:00:21]} 32. Kf1 {[%clk 0:00:49]}  e5 {[%clk 0:00:18]} 33. Be3 {[%clk 0:00:47]}  Rdc4 {[%clk 0:00:19]} 34. Ne1 {[%clk 0:00:38]}  d4 {[%clk 0:00:19]} 35. Bd2 {[%clk 0:00:39]}  a4 {[%clk 0:00:18]} 36. b3 {[%clk 0:00:37]}  axb3 {[%clk 0:00:18]} 37. axb3 {[%clk 0:00:38]}  R4c6 {[%clk 0:00:18]} 38. f3 {[%clk 0:00:39]}  Rb8 {[%clk 0:00:18]} 39. b4 {[%clk 0:00:39]}  Be7 {[%clk 0:00:18]} 40. Rb1 {[%clk 0:00:39]}  Rb5 {[%clk 0:00:18]} 41. Ke2 {[%clk 0:00:38]}  Kf7 {[%clk 0:00:16]} 42. Kd3 {[%clk 0:00:32]}  Ke6 {[%clk 0:00:16]} 43. Nc2 {[%clk 0:00:33]}  Kd5 {[%clk 0:00:15]} 44. Ra1 {[%clk 0:00:31]}  Rxc2 {[%clk 0:00:12]} 45. Kxc2 {[%clk 0:00:30]}  Bxb4 {[%clk 0:00:13]} 46. Bxb4 {[%clk 0:00:28]}  Rxb4 {[%clk 0:00:14]} 47. Ra5+ {[%clk 0:00:27]}  Kc4 {[%clk 0:00:12]} 48. Rxe5 {[%clk 0:00:27]}  d3+ {[%clk 0:00:13]} 49. Kc1 {[%clk 0:00:27]}  Kc3 {[%clk 0:00:13]} 50. Rc5+ {[%clk 0:00:26]}  Kd4 {[%clk 0:00:13]} 51. Rc7 {[%clk 0:00:25]}  Ra4 {[%clk 0:00:10]} 52. Rxg7 {[%clk 0:00:20]}  Ra2 {[%clk 0:00:08]} 53. h4 {[%clk 0:00:12]}  Kc3 {[%clk 0:00:08]} 54. Rc7+ {[%clk 0:00:11]}  Kd4 {[%clk 0:00:08]} 55. g4 {[%clk 0:00:11]}  Ke3 {[%clk 0:00:08]} 56. Re7+ {[%clk 0:00:11]}  Kxf3 {[%clk 0:00:09]} 57. g5 {[%clk 0:00:12]}  hxg5 {[%clk 0:00:09]} 58. hxg5 {[%clk 0:00:13]}  Ra5 {[%clk 0:00:09]} 59. Kd2 {[%clk 0:00:12]}  Rxg5 {[%clk 0:00:09]} 60. Kxd3 {[%clk 0:00:13]}  Rd5+ {[%clk 0:00:09]} 61. Kc4 {[%clk 0:00:13]}  Rd8 {[%clk 0:00:10]} 62. Re5 {[%clk 0:00:13]}  Rc8+ {[%clk 0:00:09]} 63. Rc5 {[%clk 0:00:14]}  Rxc5+ {[%clk 0:00:09]} 64. Kxc5 {[%clk 0:00:15]} 1/2-1/2


[Site "https://www.chess.com"]

[Event "Titled Tuesday Blitz October 11 Late 2022"]
[White "Garmash, Aliona"]
[Black "Milosevic, Milos"]
[WhiteFideId "34127620"]
[BlackFideId "964875"]
[WhiteElo "1980"]
[BlackElo "2321"]
[Result "0-1"]
[Round "05"]
[TimeControl "180+1"]
[Date "2022.10.12"]
[WhiteClock "0:00:08"]
[BlackClock "0:00:27"]

1. d4 {[%clk 0:03:00]}  Nf6 {[%clk 0:02:57]} 2. c4 {[%clk 0:02:59]}  g6 {[%clk 0:02:58]} 3. Nc3 {[%clk 0:02:58]}  Bg7 {[%clk 0:02:59]} 4. e4 {[%clk 0:02:58]}  d6 {[%clk 0:02:59]} 5. Nf3 {[%clk 0:02:57]}  O-O {[%clk 0:03:00]} 6. Be2 {[%clk 0:02:58]}  Nbd7 {[%clk 0:02:59]} 7. O-O {[%clk 0:02:56]}  e5 {[%clk 0:03:00]} 8. Be3 {[%clk 0:02:56]}  Ng4 {[%clk 0:02:58]} 9. Bg5 {[%clk 0:02:54]}  f6 {[%clk 0:02:58]} 10. Bc1 {[%clk 0:02:31]}  Nh6 {[%clk 0:02:55]} 11. d5 {[%clk 0:02:14]}  Nf7 {[%clk 0:02:45]} 12. Ne1 {[%clk 0:01:56]}  a5 {[%clk 0:02:42]} 13. Nd3 {[%clk 0:01:52]}  f5 {[%clk 0:02:39]} 14. Bd2 {[%clk 0:01:20]}  Qh4 {[%clk 0:02:19]} 15. a3 {[%clk 0:00:58]}  f4 {[%clk 0:01:14]} 16. b4 {[%clk 0:00:53]}  Nf6 {[%clk 0:01:01]} 17. c5 {[%clk 0:00:31]}  Bd7 {[%clk 0:01:00]} 18. Nb2 {[%clk 0:00:26]}  axb4 {[%clk 0:00:57]} 19. axb4 {[%clk 0:00:25]}  Rxa1 {[%clk 0:00:58]} 20. Qxa1 {[%clk 0:00:25]}  Ng5 {[%clk 0:00:58]} 21. f3 {[%clk 0:00:24]}  Nf7 {[%clk 0:00:46]} 22. Nc4 {[%clk 0:00:23]}  g5 {[%clk 0:00:46]} 23. Qa7 {[%clk 0:00:21]}  g4 {[%clk 0:00:30]} 24. Nd1 {[%clk 0:00:13]}  g3 {[%clk 0:00:29]} 25. h3 {[%clk 0:00:12]}  Bxh3 {[%clk 0:00:29]} 26. Nf2 {[%clk 0:00:08]}  Bxg2 {[%clk 0:00:27]} 0-1


[Site "https://www.chess.com"]

[Event "Titled Tuesday Blitz October 11 Late 2022"]
[White "Gatineau, Yovann"]
[Black "Girsh, Daniel"]
[WhiteFideId "26028999"]
[BlackFideId "30949190"]
[WhiteElo "2275"]
[BlackElo "2075"]
[Result "0-1"]
[Round "05"]
[TimeControl "180+1"]
[Date "2022.10.12"]
[WhiteClock "0:00:06"]
[BlackClock "0:01:18"]

1. Nf3 {[%clk 0:03:00]}  d5 {[%clk 0:02:59]} 2. e3 {[%clk 0:03:00]}  Nf6 {[%clk 0:02:59]} 3. c4 {[%clk 0:03:00]}  e6 {[%clk 0:02:59]} 4. b3 {[%clk 0:03:01]}  Be7 {[%clk 0:02:59]} 5. Bb2 {[%clk 0:03:00]}  O-O {[%clk 0:02:59]} 6. Rg1 {[%clk 0:02:59]}  c5 {[%clk 0:02:51]} 7. g4 {[%clk 0:02:55]}  Nc6 {[%clk 0:02:49]} 8. g5 {[%clk 0:02:54]}  Ne4 {[%clk 0:02:49]} 9. h4 {[%clk 0:02:51]}  d4 {[%clk 0:02:43]} 10. Bd3 {[%clk 0:02:51]}  Nd6 {[%clk 0:02:35]} 11. exd4 {[%clk 0:02:50]}  cxd4 {[%clk 0:02:34]} 12. Nxd4 {[%clk 0:02:12]}  Nxd4 {[%clk 0:02:34]} 13. Bxd4 {[%clk 0:02:13]}  Nxc4 {[%clk 0:02:33]} 14. Bxc4 {[%clk 0:01:42]}  Qxd4 {[%clk 0:02:32]} 15. Nc3 {[%clk 0:01:42]}  Bd7 {[%clk 0:02:24]} 16. Qg4 {[%clk 0:01:25]}  e5 {[%clk 0:02:07]} 17. Qxd4 {[%clk 0:01:17]}  exd4 {[%clk 0:02:08]} 18. Nd5 {[%clk 0:01:18]}  Bd6 {[%clk 0:02:05]} 19. O-O-O {[%clk 0:01:08]}  Be6 {[%clk 0:01:41]} 20. a4 {[%clk 0:00:28]}  Rfd8 {[%clk 0:01:32]} 21. Rde1 {[%clk 0:00:19]}  Ba3+ {[%clk 0:01:31]} 22. Kc2 {[%clk 0:00:17]}  Bxd5 {[%clk 0:01:29]} 23. Bxd5 {[%clk 0:00:08]}  Rxd5 {[%clk 0:01:30]} 24. Rg4 {[%clk 0:00:08]}  d3+ {[%clk 0:01:30]} 25. Kb1 {[%clk 0:00:07]}  g6 {[%clk 0:01:27]} 26. h5 {[%clk 0:00:07]}  gxh5 {[%clk 0:01:25]} 27. Rg3 {[%clk 0:00:07]}  Rc8 {[%clk 0:01:23]} 28. f4 {[%clk 0:00:07]}  Kg7 {[%clk 0:01:19]} 29. Rf3 {[%clk 0:00:06]}  Kg6 {[%clk 0:01:18]} 0-1


[Site "https://www.chess.com"]

[Event "Titled Tuesday Blitz October 11 Late 2022"]
[White "Gilmanov, Mansur"]
[Black "Gokerkan, Cem Kaan"]
[WhiteFideId "4166868"]
[BlackFideId "6336760"]
[WhiteElo "2377"]
[BlackElo "2365"]
[Result "0-1"]
[Round "05"]
[TimeControl "180+1"]
[Date "2022.10.12"]
[WhiteClock "0:00:07"]
[BlackClock "0:00:40"]

1. d4 {[%clk 0:03:00]}  Nf6 {[%clk 0:03:00]} 2. Bg5 {[%clk 0:03:00]}  d5 {[%clk 0:03:00]} 3. Bxf6 {[%clk 0:02:58]}  exf6 {[%clk 0:03:00]} 4. e3 {[%clk 0:02:59]}  Bd6 {[%clk 0:02:59]} 5. c4 {[%clk 0:02:59]}  c6 {[%clk 0:02:58]} 6. Nc3 {[%clk 0:02:59]}  Be6 {[%clk 0:02:58]} 7. cxd5 {[%clk 0:02:59]}  cxd5 {[%clk 0:02:59]} 8. Qb3 {[%clk 0:02:55]}  Qd7 {[%clk 0:02:46]} 9. Bd3 {[%clk 0:02:27]}  Nc6 {[%clk 0:02:46]} 10. Nge2 {[%clk 0:02:26]}  O-O {[%clk 0:02:45]} 11. O-O {[%clk 0:02:24]}  f5 {[%clk 0:02:39]} 12. Rac1 {[%clk 0:02:18]}  f4 {[%clk 0:02:34]} 13. exf4 {[%clk 0:02:14]}  Rfe8 {[%clk 0:02:24]} 14. Na4 {[%clk 0:01:33]}  Bg4 {[%clk 0:02:19]} 15. f3 {[%clk 0:00:44]}  Bf5 {[%clk 0:02:18]} 16. Nc5 {[%clk 0:00:44]}  Bxc5 {[%clk 0:02:08]} 17. dxc5 {[%clk 0:00:43]}  Bxd3 {[%clk 0:01:33]} 18. Qxd3 {[%clk 0:00:44]}  Nb4 {[%clk 0:01:34]} 19. Qd2 {[%clk 0:00:42]}  Nxa2 {[%clk 0:01:34]} 20. Ra1 {[%clk 0:00:24]}  Nb4 {[%clk 0:01:34]} 21. Nd4 {[%clk 0:00:20]}  a5 {[%clk 0:01:30]} 22. Rfd1 {[%clk 0:00:19]}  Rec8 {[%clk 0:01:24]} 23. Rac1 {[%clk 0:00:16]}  h6 {[%clk 0:01:22]} 24. h3 {[%clk 0:00:15]}  Qe7 {[%clk 0:01:10]} 25. Re1 {[%clk 0:00:14]}  Qf6 {[%clk 0:01:08]} 26. Nb5 {[%clk 0:00:14]}  Rd8 {[%clk 0:01:00]} 27. Nd6 {[%clk 0:00:14]}  b6 {[%clk 0:00:58]} 28. Nb7 {[%clk 0:00:15]}  Rd7 {[%clk 0:00:57]} 29. Nd6 {[%clk 0:00:12]}  bxc5 {[%clk 0:00:56]} 30. Nb5 {[%clk 0:00:12]}  d4 {[%clk 0:00:52]} 31. Rxc5 {[%clk 0:00:11]}  Qb6 {[%clk 0:00:51]} 32. Rec1 {[%clk 0:00:10]}  d3 {[%clk 0:00:49]} 33. Kh2 {[%clk 0:00:10]}  Nc2 {[%clk 0:00:46]} 34. R1xc2 {[%clk 0:00:09]}  dxc2 {[%clk 0:00:45]} 35. Qxc2 {[%clk 0:00:08]}  Rad8 {[%clk 0:00:43]} 36. Na3 {[%clk 0:00:06]}  Rd2 {[%clk 0:00:42]} 37. Qc3 {[%clk 0:00:07]}  Qg6 {[%clk 0:00:40]} 38. Re5 {[%clk 0:00:07]}  Qxg2# {[%clk 0:00:40]} 0-1


[Site "https://www.chess.com"]

[Event "Titled Tuesday Blitz October 11 Late 2022"]
[White "Girel, Joseph"]
[Black "Noboa Silva, Kevin"]
[WhiteFideId "36033561"]
[BlackFideId "3618471"]
[WhiteElo "2281"]
[BlackElo "2178"]
[Result "1-0"]
[Round "05"]
[TimeControl "180+1"]
[Date "2022.10.12"]
[WhiteClock "0:00:28"]
[BlackClock "0:00:10"]

1. e4 {[%clk 0:03:00]}  e6 {[%clk 0:02:49]} 2. d4 {[%clk 0:03:00]}  d5 {[%clk 0:02:49]} 3. Nd2 {[%clk 0:03:01]}  a6 {[%clk 0:02:49]} 4. Bd3 {[%clk 0:02:59]}  c5 {[%clk 0:02:48]} 5. dxc5 {[%clk 0:02:59]}  Bxc5 {[%clk 0:02:47]} 6. Ngf3 {[%clk 0:02:59]}  Ne7 {[%clk 0:02:46]} 7. O-O {[%clk 0:02:59]}  Nbc6 {[%clk 0:02:45]} 8. Qe2 {[%clk 0:02:58]}  O-O {[%clk 0:02:45]} 9. c3 {[%clk 0:02:55]}  Ng6 {[%clk 0:02:42]} 10. Nb3 {[%clk 0:02:53]}  Be7 {[%clk 0:02:41]} 11. h3 {[%clk 0:02:46]}  Bd7 {[%clk 0:02:34]} 12. exd5 {[%clk 0:02:42]}  exd5 {[%clk 0:02:34]} 13. Be3 {[%clk 0:02:43]}  Re8 {[%clk 0:02:33]} 14. Qc2 {[%clk 0:02:41]}  Bd6 {[%clk 0:02:28]} 15. Nfd4 {[%clk 0:02:36]}  Nce5 {[%clk 0:02:24]} 16. Bf5 {[%clk 0:02:35]}  Rc8 {[%clk 0:02:19]} 17. Nd2 {[%clk 0:02:30]}  Bb8 {[%clk 0:02:11]} 18. Bxd7 {[%clk 0:02:27]}  Qxd7 {[%clk 0:02:09]} 19. Rfe1 {[%clk 0:02:24]}  Qc7 {[%clk 0:02:03]} 20. Nf1 {[%clk 0:02:17]}  Nc4 {[%clk 0:02:01]} 21. Nf5 {[%clk 0:02:09]}  Re5 {[%clk 0:01:45]} 22. Bd4 {[%clk 0:02:06]}  Rxe1 {[%clk 0:01:16]} 23. Rxe1 {[%clk 0:02:05]}  f6 {[%clk 0:01:11]} 24. Qe2 {[%clk 0:02:02]}  Nce5 {[%clk 0:01:06]} 25. Qh5 {[%clk 0:01:52]}  Qf7 {[%clk 0:00:52]} 26. N1e3 {[%clk 0:01:46]}  Rd8 {[%clk 0:00:49]} 27. Qd1 {[%clk 0:01:40]}  Nf4 {[%clk 0:00:43]} 28. Ng4 {[%clk 0:01:39]}  Qe6 {[%clk 0:00:26]} 29. Nfe3 {[%clk 0:01:04]}  Nfg6 {[%clk 0:00:16]} 30. Qb3 {[%clk 0:00:58]}  Qf7 {[%clk 0:00:15]} 31. Nf5 {[%clk 0:00:53]}  Qe6 {[%clk 0:00:14]} 32. Nge3 {[%clk 0:00:51]}  Rd7 {[%clk 0:00:12]} 33. Rd1 {[%clk 0:00:49]}  Nf4 {[%clk 0:00:12]} 34. h4 {[%clk 0:00:43]}  g6 {[%clk 0:00:12]} 35. Ng3 {[%clk 0:00:38]}  Ng4 {[%clk 0:00:12]} 36. Nxg4 {[%clk 0:00:36]}  Qxg4 {[%clk 0:00:13]} 37. Re1 {[%clk 0:00:32]}  Qxh4 {[%clk 0:00:10]} 38. Re8+ {[%clk 0:00:28]}  Kg7 {[%clk 0:00:09]} 39. Rxb8 {[%clk 0:00:27]}  Nh5 {[%clk 0:00:08]} 40. Rxb7 {[%clk 0:00:26]}  Rxb7 {[%clk 0:00:08]} 41. Qxb7+ {[%clk 0:00:27]}  Kh6 {[%clk 0:00:09]} 42. Be3+ {[%clk 0:00:27]}  g5 {[%clk 0:00:09]} 43. Nf5+ {[%clk 0:00:27]}  Kg6 {[%clk 0:00:10]} 44. Nxh4+ {[%clk 0:00:28]} 1-0


[Site "https://www.chess.com"]

[Event "Titled Tuesday Blitz October 11 Late 2022"]
[White "Goryachkina, Aleksandra"]
[Black "Martin Carmona, Gaston Manuel"]
[WhiteFideId "4147103"]
[BlackFideId "22284567"]
[WhiteElo "2484"]
[BlackElo "2235"]
[Result "1-0"]
[Round "05"]
[TimeControl "180+1"]
[Date "2022.10.12"]
[WhiteClock "0:01:19"]
[BlackClock "0:00:53"]

1. e4 {[%clk 0:02:59]}  e5 {[%clk 0:02:58]} 2. Nf3 {[%clk 0:02:59]}  Nc6 {[%clk 0:02:58]} 3. d4 {[%clk 0:02:59]}  exd4 {[%clk 0:02:58]} 4. Nxd4 {[%clk 0:02:59]}  Nf6 {[%clk 0:02:58]} 5. Nxc6 {[%clk 0:02:59]}  bxc6 {[%clk 0:02:58]} 6. Bd3 {[%clk 0:02:59]}  d6 {[%clk 0:02:41]} 7. O-O {[%clk 0:02:58]}  Be7 {[%clk 0:02:41]} 8. Nc3 {[%clk 0:02:53]}  O-O {[%clk 0:02:41]} 9. b3 {[%clk 0:02:47]}  c5 {[%clk 0:02:35]} 10. Bb2 {[%clk 0:02:46]}  Bg4 {[%clk 0:02:27]} 11. Qd2 {[%clk 0:02:45]}  Rb8 {[%clk 0:02:23]} 12. Rfe1 {[%clk 0:02:43]}  Be6 {[%clk 0:02:23]} 13. Rad1 {[%clk 0:02:25]}  Qc8 {[%clk 0:02:09]} 14. Nd5 {[%clk 0:02:12]}  Bxd5 {[%clk 0:01:59]} 15. exd5 {[%clk 0:02:12]}  Re8 {[%clk 0:01:54]} 16. Rxe7 {[%clk 0:01:30]}  Rxe7 {[%clk 0:01:47]} 17. Bxf6 {[%clk 0:01:30]}  gxf6 {[%clk 0:01:45]} 18. Qh6 {[%clk 0:01:29]}  f5 {[%clk 0:01:29]} 19. Qg5+ {[%clk 0:01:29]}  Kf8 {[%clk 0:01:27]} 20. Bxf5 {[%clk 0:01:28]}  Qa6 {[%clk 0:00:57]} 21. Qh6+ {[%clk 0:01:22]}  Ke8 {[%clk 0:00:58]} 22. Qxh7 {[%clk 0:01:21]}  Kd8 {[%clk 0:00:57]} 23. Qh8+ {[%clk 0:01:19]}  Re8 {[%clk 0:00:57]} 24. Qf6+ {[%clk 0:01:19]}  Re7 {[%clk 0:00:53]} 25. Re1 {[%clk 0:01:19]} 1-0


[Site "https://www.chess.com"]